[Event "Late-Titled-Tuesday-Blitz-May-28-2024"]
[Site "Chess.com"]
[Date "2024.05.28"]
[Round "10"]
[White "Jospem"]
[Black "nihalsarin"]
[Result "0-1"]
[WhiteElo "3035"]
[BlackElo "3256"]
[TimeControl "180+1"]
[EndTime "15:56:13 PDT"]
[Termination "nihalsarin won on time"]

1. e4 {[%clk 0:03:00.9]} 1... c5 {[%clk 0:02:55]} 2. Nf3 {[%clk 0:03:00.4]} 2...
e6 {[%clk 0:02:50]} 3. c3 {[%clk 0:02:58.1]} 3... d5 {[%clk 0:02:46.2]} 4. e5
{[%clk 0:02:57.9]} 4... Nc6 {[%clk 0:02:41.9]} 5. g3 {[%clk 0:02:56.6]} 5... d4
{[%clk 0:02:36.7]} 6. d3 {[%clk 0:02:56.4]} 6... Nge7 {[%clk 0:02:35.7]} 7. Bg2
{[%clk 0:02:55.5]} 7... Ng6 {[%clk 0:02:35.7]} 8. Qe2 {[%clk 0:02:51.8]} 8...
Qc7 {[%clk 0:02:36]} 9. O-O {[%clk 0:02:49.5]} 9... Ngxe5 {[%clk 0:02:35]} 10.
Nxe5 {[%clk 0:02:49.7]} 10... Nxe5 {[%clk 0:02:34.7]} 11. cxd4 {[%clk
0:02:47.3]} 11... cxd4 {[%clk 0:02:35.6]} 12. Bf4 {[%clk 0:02:47.4]} 12... Bd6
{[%clk 0:02:36.1]} 13. Nd2 {[%clk 0:02:46.7]} 13... Nc6 {[%clk 0:02:23.7]} 14.
Bxd6 {[%clk 0:02:45.6]} 14... Qxd6 {[%clk 0:02:24.6]} 15. Rac1 {[%clk
0:02:40.9]} 15... O-O {[%clk 0:02:23.5]} 16. Nc4 {[%clk 0:02:15.9]} 16... Qc7
{[%clk 0:02:09]} 17. a3 {[%clk 0:02:07.8]} 17... a5 {[%clk 0:02:04.2]} 18. Qd2
{[%clk 0:01:48.6]} 18... a4 {[%clk 0:01:49.9]} 19. Rfe1 {[%clk 0:01:43]} 19...
Bd7 {[%clk 0:01:49.7]} 20. Qg5 {[%clk 0:01:28.6]} 20... Rfd8 {[%clk 0:01:37.5]}
21. Qc5 {[%clk 0:01:27.2]} 21... Be8 {[%clk 0:01:36.7]} 22. h4 {[%clk
0:01:19.3]} 22... h6 {[%clk 0:01:36.6]} 23. Re2 {[%clk 0:00:54.5]} 23... Rab8
{[%clk 0:01:12.8]} 24. Nb6 {[%clk 0:00:49.9]} 24... Qe7 {[%clk 0:01:10.7]} 25.
Nxa4 {[%clk 0:00:42.8]} 25... Qf6 {[%clk 0:01:09.2]} 26. Nb6 {[%clk 0:00:39.7]}
26... Ne7 {[%clk 0:01:09.3]} 27. Qe5 {[%clk 0:00:33.9]} 27... Bc6 {[%clk
0:00:48.6]} 28. Qxf6 {[%clk 0:00:29.2]} 28... gxf6 {[%clk 0:00:49.5]} 29. b4
{[%clk 0:00:23.2]} 29... Rd6 {[%clk 0:00:40.4]} 30. Nc4 {[%clk 0:00:23]} 30...
Rdd8 {[%clk 0:00:41.1]} 31. Na5 {[%clk 0:00:17.7]} 31... Bxg2 {[%clk 0:00:31.3]}
32. Kxg2 {[%clk 0:00:18.6]} 32... Nd5 {[%clk 0:00:32]} 33. Rb2 {[%clk
0:00:09.7]} 33... Nc3 {[%clk 0:00:28.6]} 34. Nb3 {[%clk 0:00:09.3]} 34... Ra8
{[%clk 0:00:23.6]} 35. Nxd4 {[%clk 0:00:02.4]} 35... Na4 {[%clk 0:00:23.2]} 36.
Nxe6 {[%clk 0:00:01.4]} 36... Nxb2 {[%clk 0:00:17.1]} 37. Nxd8 {[%clk
0:00:01.7]} 37... Rxd8 {[%clk 0:00:18]} 38. Rc7 {[%clk 0:00:02.5]} 38... Rxd3
{[%clk 0:00:18.6]} 39. Rxb7 {[%clk 0:00:02.8]} 39... Rxa3 {[%clk 0:00:19]} 40.
Rc7 {[%clk 0:00:02.8]} 40... Rb3 {[%clk 0:00:19.2]} 41. Rc6 {[%clk 0:00:03.4]}
41... Kg7 {[%clk 0:00:19.1]} 42. Rc2 {[%clk 0:00:04.3]} 42... Nd3 {[%clk
0:00:19.1]} 43. Rc8 {[%clk 0:00:05.2]} 43... Rxb4 {[%clk 0:00:18.1]} 44. Rd8
{[%clk 0:00:06.1]} 44... Ne5 {[%clk 0:00:17.8]} 45. Rd1 {[%clk 0:00:07]} 45...
Rb2 {[%clk 0:00:17.7]} 46. Rd4 {[%clk 0:00:06.7]} 46... h5 {[%clk 0:00:17.3]}
47. Kf1 {[%clk 0:00:07.3]} 47... Ng4 {[%clk 0:00:17.2]} 48. Rf4 {[%clk
0:00:08.1]} 48... Kg6 {[%clk 0:00:17.3]} 49. Kg2 {[%clk 0:00:08.8]} 49... f5
{[%clk 0:00:15.4]} 50. Kg1 {[%clk 0:00:09.2]} 50... Kf6 {[%clk 0:00:15.2]} 51.
Kg2 {[%clk 0:00:09.7]} 51... Ke5 {[%clk 0:00:15.7]} 52. Kg1 {[%clk 0:00:10.1]}
52... Nxf2 {[%clk 0:00:13.3]} 53. Rxf2 {[%clk 0:00:11]} 53... Rxf2 {[%clk
0:00:13.9]} 54. Kxf2 {[%clk 0:00:11.9]} 54... f4 {[%clk 0:00:14.7]} 55. Kf3
{[%clk 0:00:12.5]} 55... fxg3 {[%clk 0:00:14.8]} 56. Kxg3 {[%clk 0:00:13.4]}
56... Ke4 {[%clk 0:00:15.3]} 57. Kg2 {[%clk 0:00:13.4]} 57... Kf4 {[%clk
0:00:15.5]} 58. Kh3 {[%clk 0:00:14.3]} 58... Kf3 {[%clk 0:00:15.8]} 59. Kh2
{[%clk 0:00:15.2]} 59... f5 {[%clk 0:00:15.7]} 60. Kh3 {[%clk 0:00:15.5]} 60...
f4 {[%clk 0:00:15.4]} 61. Kh2 {[%clk 0:00:16.4]} 61... Ke2 {[%clk 0:00:15.9]}
62. Kh1 {[%clk 0:00:17.3]} 62... f3 {[%clk 0:00:16.7]} 63. Kg1 {[%clk
0:00:18.2]} 63... f2+ {[%clk 0:00:17.4]} 64. Kh2 {[%clk 0:00:19.1]} 64... f1=Q
{[%clk 0:00:17.9]} 65. Kg3 {[%clk 0:00:20]} 65... Qf3+ {[%clk 0:00:17.9]} 66.
Kh2 {[%clk 0:00:20.9]} 66... Qg4 {[%clk 0:00:18.4]} 0-1

[Event "Late-Titled-Tuesday-Blitz-May-28-2024"]
[Site "Chess.com"]
[Date "2024.05.28"]
[Round "10"]
[White "BabageldiAnnaberdiyev"]
[Black "nitpicker"]
[Result "1-0"]
[WhiteElo "2566"]
[BlackElo "2303"]
[TimeControl "180+1"]
[EndTime "15:56:18 PDT"]
[Termination "BabageldiAnnaberdiyev won on time"]

1. e4 {[%clk 0:03:00.9]} 1... c5 {[%clk 0:02:59]} 2. Nf3 {[%clk 0:03:00.8]} 2...
Nc6 {[%clk 0:02:58.3]} 3. d3 {[%clk 0:03:01]} 3... g6 {[%clk 0:02:56.7]} 4. Nbd2
{[%clk 0:03:01.8]} 4... Bg7 {[%clk 0:02:56.2]} 5. g3 {[%clk 0:03:02.6]} 5... e5
{[%clk 0:02:52.8]} 6. Bg2 {[%clk 0:03:02.6]} 6... d6 {[%clk 0:02:52.9]} 7. O-O
{[%clk 0:03:02.9]} 7... Nge7 {[%clk 0:02:52.5]} 8. a4 {[%clk 0:03:03.4]} 8... h6
{[%clk 0:02:50.1]} 9. c3 {[%clk 0:03:04.3]} 9... O-O {[%clk 0:02:49]} 10. h3
{[%clk 0:03:02.6]} 10... Be6 {[%clk 0:02:48.5]} 11. Nh2 {[%clk 0:02:54.5]} 11...
Qd7 {[%clk 0:02:45.6]} 12. g4 {[%clk 0:02:54.6]} 12... f5 {[%clk 0:02:42.8]} 13.
gxf5 {[%clk 0:02:53.2]} 13... gxf5 {[%clk 0:02:42.4]} 14. exf5 {[%clk
0:02:51.4]} 14... Nxf5 {[%clk 0:02:23.6]} 15. Ne4 {[%clk 0:02:50.9]} 15... Nh4
{[%clk 0:02:10.5]} 16. Qh5 {[%clk 0:02:48.1]} 16... Nxg2 {[%clk 0:02:01.5]} 17.
Kxg2 {[%clk 0:02:49]} 17... Rf5 {[%clk 0:01:58.8]} 18. Qh4 {[%clk 0:02:43.9]}
18... Qd8 {[%clk 0:01:41.7]} 19. Qxd8+ {[%clk 0:02:38.3]} 19... Rxd8 {[%clk
0:01:40.2]} 20. Ng4 {[%clk 0:02:39.2]} 20... Kh7 {[%clk 0:01:33.6]} 21. f4
{[%clk 0:02:37.3]} 21... h5 {[%clk 0:01:19.6]} 22. Nh2 {[%clk 0:02:33.8]} 22...
Bh6 {[%clk 0:01:13.5]} 23. fxe5 {[%clk 0:02:32.6]} 23... Nxe5 {[%clk 0:01:08.9]}
24. Nf6+ {[%clk 0:02:20.1]} 24... Kg6 {[%clk 0:01:04.3]} 25. Bxh6 {[%clk
0:02:19]} 25... Kxh6 {[%clk 0:00:58]} 26. d4 {[%clk 0:02:14.6]} 26... Nc4 {[%clk
0:00:51.6]} 27. Rxf5 {[%clk 0:02:11.1]} 27... Bxf5 {[%clk 0:00:48.8]} 28. b3
{[%clk 0:02:01.8]} 28... Nd2 {[%clk 0:00:42.3]} 29. Rd1 {[%clk 0:01:38.9]} 29...
Nxb3 {[%clk 0:00:41.3]} 30. dxc5 {[%clk 0:01:39.5]} 30... Rf8 {[%clk 0:00:37.3]}
31. Rxd6 {[%clk 0:01:37.8]} 31... Kg5 {[%clk 0:00:28.3]} 32. Nf3+ {[%clk
0:01:36.6]} 32... Kf4 {[%clk 0:00:25.9]} 33. Nxh5+ {[%clk 0:01:32.4]} 33... Ke3
{[%clk 0:00:26]} 34. Ng3 {[%clk 0:01:30.5]} 34... Bc8 {[%clk 0:00:20.4]} 35.
Nf1+ {[%clk 0:01:18]} 35... Kf4 {[%clk 0:00:16.8]} 36. Nd4 {[%clk 0:01:04.9]}
36... Nxc5 {[%clk 0:00:16.2]} 37. Ng3 {[%clk 0:01:00.4]} 37... Rg8 {[%clk
0:00:15.4]} 38. Ne2+ {[%clk 0:00:53.9]} 38... Ke3 {[%clk 0:00:14.5]} 39. Rd5
{[%clk 0:00:47.1]} 39... Nxa4 {[%clk 0:00:13.3]} 40. Re5+ {[%clk 0:00:46.9]}
40... Kd2 {[%clk 0:00:13]} 41. Kf2 {[%clk 0:00:46]} 41... Nxc3 {[%clk
0:00:10.8]} 42. Nxc3 {[%clk 0:00:44]} 42... Kxc3 {[%clk 0:00:10.4]} 43. h4
{[%clk 0:00:44.9]} 43... a6 {[%clk 0:00:09.4]} 44. h5 {[%clk 0:00:45.1]} 44...
b5 {[%clk 0:00:09.4]} 45. h6 {[%clk 0:00:45.5]} 45... b4 {[%clk 0:00:08.9]} 46.
h7 {[%clk 0:00:45.8]} 46... Rh8 {[%clk 0:00:08.8]} 47. Rc5+ {[%clk 0:00:43.5]}
47... Kd4 {[%clk 0:00:08]} 48. Rc7 {[%clk 0:00:43.8]} 48... b3 {[%clk
0:00:06.3]} 49. Ne2+ {[%clk 0:00:44.3]} 49... Kd5 {[%clk 0:00:04.1]} 50. Nc3+
{[%clk 0:00:42.6]} 50... Kd4 {[%clk 0:00:03.3]} 51. Ke1 {[%clk 0:00:40.1]} 51...
Bf5 {[%clk 0:00:03.2]} 52. Kd2 {[%clk 0:00:39.4]} 52... Rxh7 {[%clk 0:00:03]}
53. Ne2+ {[%clk 0:00:33.8]} 53... Ke5 {[%clk 0:00:02.8]} 54. Rc5+ {[%clk
0:00:33.1]} 54... Kf6 {[%clk 0:00:03.2]} 55. Nd4 {[%clk 0:00:30.9]} 55... Bg6
{[%clk 0:00:02.1]} 56. Nxb3 {[%clk 0:00:30]} 56... Kg7 {[%clk 0:00:01.2]} 57.
Na5 {[%clk 0:00:29.6]} 57... Kh6 {[%clk 0:00:01.4]} 58. Ke3 {[%clk 0:00:29.9]}
58... Re7+ {[%clk 0:00:01.5]} 59. Kf4 {[%clk 0:00:29.9]} 59... Rf7+ {[%clk
0:00:01.7]} 60. Kg3 {[%clk 0:00:29.6]} 60... Rg7 {[%clk 0:00:01.4]} 61. Kh4
{[%clk 0:00:27.8]} 61... Bf7 {[%clk 0:00:01.4]} 62. Nc6 {[%clk 0:00:26.9]} 62...
Rg6 {[%clk 0:00:01]} 63. Ne5 {[%clk 0:00:26.3]} 63... Rf6 {[%clk 0:00:01]} 64.
Ng4+ {[%clk 0:00:26.1]} 64... Kg7 {[%clk 0:00:01]} 65. Nxf6 {[%clk 0:00:24.2]}
65... Kxf6 {[%clk 0:00:01.6]} 66. Rc6+ {[%clk 0:00:24.9]} 66... Kg7 {[%clk
0:00:00.8]} 67. Rxa6 {[%clk 0:00:25.8]} 67... Kh8 {[%clk 0:00:00.7]} 68. Kg5
{[%clk 0:00:26.4]} 68... Bg8 {[%clk 0:00:01]} 69. Kf6 {[%clk 0:00:27.3]} 69...
Bh7 {[%clk 0:00:01.1]} 70. Ra4 {[%clk 0:00:27.7]} 70... Bg8 {[%clk 0:00:01]} 71.
Rg4 {[%clk 0:00:28.6]} 71... Bh7 {[%clk 0:00:01]} 72. Kf7 {[%clk 0:00:29.2]}
72... Be4 {[%clk 0:00:00.8]} 73. Rxe4 {[%clk 0:00:28.6]} 1-0

[Event "Late-Titled-Tuesday-Blitz-May-28-2024"]
[Site "Chess.com"]
[Date "2024.05.28"]
[Round "10"]
[White "nocnypako"]
[Black "MaiqMaster"]
[Result "1-0"]
[WhiteElo "2697"]
[BlackElo "2480"]
[TimeControl "180+1"]
[EndTime "15:56:24 PDT"]
[Termination "nocnypako won by checkmate"]

1. d4 {[%clk 0:02:54.9]} 1... d5 {[%clk 0:02:46.9]} 2. Bf4 {[%clk 0:02:54.5]}
2... c5 {[%clk 0:02:45.4]} 3. e3 {[%clk 0:02:54.3]} 3... Nc6 {[%clk 0:02:44.1]}
4. c3 {[%clk 0:02:54.1]} 4... Nf6 {[%clk 0:02:43.5]} 5. Nd2 {[%clk 0:02:53.4]}
5... e6 {[%clk 0:02:41.1]} 6. Ngf3 {[%clk 0:02:53.1]} 6... cxd4 {[%clk
0:02:40.1]} 7. cxd4 {[%clk 0:02:50.8]} 7... Qb6 {[%clk 0:02:29.9]} 8. Qb3 {[%clk
0:02:46.6]} 8... Nh5 {[%clk 0:02:28.1]} 9. Bg3 {[%clk 0:02:41.4]} 9... Qxb3
{[%clk 0:02:25.2]} 10. Nxb3 {[%clk 0:02:37.7]} 10... Bb4+ {[%clk 0:02:24.4]} 11.
Nfd2 {[%clk 0:02:37.8]} 11... O-O {[%clk 0:02:12.2]} 12. a3 {[%clk 0:02:37.3]}
12... Bxd2+ {[%clk 0:02:03.8]} 13. Kxd2 {[%clk 0:02:38.2]} 13... Nxg3 {[%clk
0:02:04.1]} 14. hxg3 {[%clk 0:02:38.2]} 14... b6 {[%clk 0:02:03]} 15. Bd3 {[%clk
0:02:34.8]} 15... g6 {[%clk 0:02:00.7]} 16. Rhc1 {[%clk 0:02:05.3]} 16... Bb7
{[%clk 0:01:59]} 17. Rc3 {[%clk 0:02:05.8]} 17... Rfc8 {[%clk 0:01:57.1]} 18.
Rac1 {[%clk 0:02:05.7]} 18... Ne7 {[%clk 0:01:54]} 19. Rc7 {[%clk 0:02:03.3]}
19... Bc6 {[%clk 0:01:35.9]} 20. Rxe7 {[%clk 0:01:52.5]} 20... Kf8 {[%clk
0:01:35.6]} 21. Rxc6 {[%clk 0:01:44.9]} 21... Kxe7 {[%clk 0:01:28.9]} 22. Rxc8
{[%clk 0:01:41]} 22... Rxc8 {[%clk 0:01:29.8]} 23. Nc1 {[%clk 0:01:41.3]} 23...
Kd6 {[%clk 0:01:28.1]} 24. Ne2 {[%clk 0:01:40.8]} 24... a5 {[%clk 0:01:26.2]}
25. Nc3 {[%clk 0:01:38.6]} 25... f6 {[%clk 0:01:24]} 26. Nb5+ {[%clk 0:01:21.1]}
26... Kd7 {[%clk 0:01:23.6]} 27. e4 {[%clk 0:01:17.3]} 27... dxe4 {[%clk
0:01:16.2]} 28. Bxe4 {[%clk 0:01:18.2]} 28... f5 {[%clk 0:01:12.4]} 29. Bd3
{[%clk 0:01:18.2]} 29... h5 {[%clk 0:01:09.8]} 30. f4 {[%clk 0:01:13.4]} 30...
Rh8 {[%clk 0:01:06]} 31. Ke2 {[%clk 0:01:11.8]} 31... h4 {[%clk 0:01:06.3]} 32.
Kf2 {[%clk 0:01:08.1]} 32... hxg3+ {[%clk 0:01:03]} 33. Kxg3 {[%clk 0:01:07.8]}
33... Rh1 {[%clk 0:01:03.6]} 34. Nc3 {[%clk 0:01:03]} 34... Re1 {[%clk
0:00:58.2]} 35. Kf2 {[%clk 0:01:01]} 35... Rh1 {[%clk 0:00:55.8]} 36. Bb5+
{[%clk 0:01:00]} 36... Kd6 {[%clk 0:00:54.9]} 37. Be8 {[%clk 0:00:58.5]} 37...
Rc1 {[%clk 0:00:47.1]} 38. Ba4 {[%clk 0:00:57.2]} 38... b5 {[%clk 0:00:39.9]}
39. Nxb5+ {[%clk 0:00:51.7]} 39... Kd5 {[%clk 0:00:40.1]} 40. Nc3+ {[%clk
0:00:51.9]} 40... Kc4 {[%clk 0:00:38]} 41. Bb5+ {[%clk 0:00:51.8]} 41... Kb3
{[%clk 0:00:35.9]} 42. Be8 {[%clk 0:00:43.2]} 42... Kxb2 {[%clk 0:00:34.7]} 43.
Nb5 {[%clk 0:00:34.1]} 43... Rc2+ {[%clk 0:00:32.2]} 44. Kf3 {[%clk 0:00:32.6]}
44... Rd2 {[%clk 0:00:27.2]} 45. Bxg6 {[%clk 0:00:28.6]} 45... Rd3+ {[%clk
0:00:23.9]} 46. Kf2 {[%clk 0:00:28.9]} 46... Kb3 {[%clk 0:00:19.9]} 47. Be8
{[%clk 0:00:22.6]} 47... Rd2+ {[%clk 0:00:18.6]} 48. Kg3 {[%clk 0:00:21.9]}
48... Rd3+ {[%clk 0:00:19]} 49. Kh4 {[%clk 0:00:21.7]} 49... Kc4 {[%clk
0:00:18.8]} 50. Bd7 {[%clk 0:00:12.5]} 50... Kd5 {[%clk 0:00:17.6]} 51. Kg5
{[%clk 0:00:10.7]} 51... Rg3+ {[%clk 0:00:17.2]} 52. Kf6 {[%clk 0:00:10.8]}
52... Rxg2 {[%clk 0:00:17]} 53. Bxe6+ {[%clk 0:00:11.1]} 53... Ke4 {[%clk
0:00:14.6]} 54. Bxf5+ {[%clk 0:00:09.9]} 54... Kxf4 {[%clk 0:00:15]} 55. d5
{[%clk 0:00:08.7]} 55... Rb2 {[%clk 0:00:14]} 56. Nd4 {[%clk 0:00:06.3]} 56...
Rd2 {[%clk 0:00:13.1]} 57. Ne6+ {[%clk 0:00:05.8]} 57... Ke3 {[%clk 0:00:13]}
58. Ke5 {[%clk 0:00:06.7]} 58... Ra2 {[%clk 0:00:12.4]} 59. d6 {[%clk
0:00:06.2]} 59... Ra1 {[%clk 0:00:04.6]} 60. d7 {[%clk 0:00:05.8]} 60... Rd1
{[%clk 0:00:05.3]} 61. d8=Q {[%clk 0:00:05.8]} 61... Rxd8 {[%clk 0:00:06.2]} 62.
Nxd8 {[%clk 0:00:06.1]} 62... Kd2 {[%clk 0:00:07.1]} 63. a4 {[%clk 0:00:05.6]}
63... Kc3 {[%clk 0:00:07.3]} 64. Bd7 {[%clk 0:00:06.5]} 64... Kb4 {[%clk
0:00:07.6]} 65. Bb5 {[%clk 0:00:07.4]} 65... Kc5 {[%clk 0:00:08]} 66. Nc6 {[%clk
0:00:08.3]} 66... Kb6 {[%clk 0:00:08.2]} 67. Kd5 {[%clk 0:00:08.6]} 67... Kb7
{[%clk 0:00:07.8]} 68. Nxa5+ {[%clk 0:00:09.1]} 68... Kb6 {[%clk 0:00:08.7]} 69.
Nb3 {[%clk 0:00:09.7]} 69... Ka7 {[%clk 0:00:09]} 70. Kc5 {[%clk 0:00:10.4]}
70... Kb7 {[%clk 0:00:09.9]} 71. a5 {[%clk 0:00:10.9]} 71... Kb8 {[%clk
0:00:10.8]} 72. a6 {[%clk 0:00:11.3]} 72... Ka7 {[%clk 0:00:11.7]} 73. Kc6
{[%clk 0:00:11.3]} 73... Kb8 {[%clk 0:00:12.6]} 74. Kb6 {[%clk 0:00:11.3]} 74...
Ka8 {[%clk 0:00:13]} 75. Nd4 {[%clk 0:00:11.5]} 75... Kb8 {[%clk 0:00:13.9]} 76.
a7+ {[%clk 0:00:11.5]} 76... Ka8 {[%clk 0:00:14.2]} 77. Bc6# {[%clk 0:00:10.7]}
1-0

[Event "Late-Titled-Tuesday-Blitz-May-28-2024"]
[Site "Chess.com"]
[Date "2024.05.28"]
[Round "10"]
[White "Maect19"]
[Black "TokChess"]
[Result "0-1"]
[WhiteElo "2293"]
[BlackElo "2480"]
[TimeControl "180+1"]
[EndTime "15:56:39 PDT"]
[Termination "TokChess won by resignation"]

1. Nf3 {[%clk 0:03:00.9]} 1... b6 {[%clk 0:02:46]} 2. g3 {[%clk 0:02:57.5]} 2...
Bb7 {[%clk 0:02:46.9]} 3. Bg2 {[%clk 0:02:57.8]} 3... Nf6 {[%clk 0:02:47]} 4.
O-O {[%clk 0:02:57.7]} 4... e6 {[%clk 0:02:47.4]} 5. d3 {[%clk 0:02:57.3]} 5...
Be7 {[%clk 0:02:47.7]} 6. c4 {[%clk 0:02:57.5]} 6... d5 {[%clk 0:02:48.1]} 7. b3
{[%clk 0:02:57.2]} 7... O-O {[%clk 0:02:48.3]} 8. Bb2 {[%clk 0:02:57.5]} 8... c5
{[%clk 0:02:48.7]} 9. Nbd2 {[%clk 0:02:57.4]} 9... Nc6 {[%clk 0:02:49.1]} 10. e3
{[%clk 0:02:57.2]} 10... dxc4 {[%clk 0:02:45.4]} 11. dxc4 {[%clk 0:02:56.7]}
11... Qc7 {[%clk 0:02:44.6]} 12. Qe2 {[%clk 0:02:56.4]} 12... Rad8 {[%clk
0:02:44.7]} 13. Rfd1 {[%clk 0:02:55.7]} 13... Nb4 {[%clk 0:02:43.4]} 14. a3
{[%clk 0:02:48]} 14... Nc6 {[%clk 0:02:34.1]} 15. Nf1 {[%clk 0:02:37.6]} 15...
Na5 {[%clk 0:02:29.1]} 16. Be5 {[%clk 0:02:34.5]} 16... Qc8 {[%clk 0:02:28.9]}
17. N1d2 {[%clk 0:02:27.5]} 17... Ne4 {[%clk 0:02:19.2]} 18. Nxe4 {[%clk
0:02:23.3]} 18... Bxe4 {[%clk 0:02:20.1]} 19. Qb2 {[%clk 0:02:23.1]} 19... f6
{[%clk 0:02:16.5]} 20. Bc3 {[%clk 0:02:19.8]} 20... Nc6 {[%clk 0:02:11.6]} 21.
Ne1 {[%clk 0:02:12.7]} 21... Bxg2 {[%clk 0:02:12.5]} 22. Nxg2 {[%clk 0:02:12.7]}
22... Bd6 {[%clk 0:02:08.5]} 23. Rd2 {[%clk 0:02:03.6]} 23... Be5 {[%clk
0:02:08.6]} 24. Rad1 {[%clk 0:02:00.9]} 24... Rxd2 {[%clk 0:02:07.2]} 25. Rxd2
{[%clk 0:01:59.9]} 25... Rd8 {[%clk 0:02:06.7]} 26. Bxe5 {[%clk 0:01:45.4]}
26... Nxe5 {[%clk 0:02:05.6]} 27. Ne1 {[%clk 0:01:45.5]} 27... Rd7 {[%clk
0:01:59.6]} 28. Kf1 {[%clk 0:01:35.3]} 28... Qe8 {[%clk 0:01:42.8]} 29. Rxd7
{[%clk 0:01:28.4]} 29... Qxd7 {[%clk 0:01:43.7]} 30. Ke2 {[%clk 0:01:28.3]}
30... Kf7 {[%clk 0:01:38.7]} 31. Qd2 {[%clk 0:01:27.8]} 31... Qc7 {[%clk
0:01:35.1]} 32. f4 {[%clk 0:01:22.7]} 32... Nc6 {[%clk 0:01:22.3]} 33. Nf3
{[%clk 0:01:01.7]} 33... Ne7 {[%clk 0:01:22.2]} 34. e4 {[%clk 0:00:59.6]} 34...
Qc6 {[%clk 0:01:20.8]} 35. Qd3 {[%clk 0:00:49.9]} 35... a6 {[%clk 0:01:15.7]}
36. e5 {[%clk 0:00:49.8]} 36... Nf5 {[%clk 0:01:00.4]} 37. Kf2 {[%clk
0:00:28.6]} 37... h5 {[%clk 0:00:53.6]} 38. h3 {[%clk 0:00:21]} 38... b5 {[%clk
0:00:47]} 39. g4 {[%clk 0:00:19]} 39... hxg4 {[%clk 0:00:47.9]} 40. hxg4 {[%clk
0:00:18.8]} 40... Nh6 {[%clk 0:00:47.1]} 41. Qd6 {[%clk 0:00:17.5]} 41... Nxg4+
{[%clk 0:00:38]} 42. Kg3 {[%clk 0:00:16.5]} 42... Qxd6 {[%clk 0:00:36.7]} 43.
exd6 {[%clk 0:00:17.4]} 43... Ne3 {[%clk 0:00:33.5]} 44. cxb5 {[%clk 0:00:17.4]}
44... axb5 {[%clk 0:00:32.9]} 45. Nh4 {[%clk 0:00:16.6]} 45... Ke8 {[%clk
0:00:25.5]} 46. Kf3 {[%clk 0:00:16.5]} 46... Nc2 {[%clk 0:00:25.6]} 47. a4
{[%clk 0:00:16.3]} 47... bxa4 {[%clk 0:00:19.7]} 48. bxa4 {[%clk 0:00:17.2]}
48... Kd7 {[%clk 0:00:19.8]} 49. a5 {[%clk 0:00:16.4]} 49... Nb4 {[%clk
0:00:19.7]} 50. f5 {[%clk 0:00:15.8]} 50... Kxd6 {[%clk 0:00:12.5]} 51. Ke4
{[%clk 0:00:13.5]} 51... Na6 {[%clk 0:00:09.8]} 52. fxe6 {[%clk 0:00:12.8]}
52... Kxe6 {[%clk 0:00:10]} 53. Nf5 {[%clk 0:00:13.3]} 53... g6 {[%clk
0:00:09.6]} 54. Ne3 {[%clk 0:00:13.4]} 54... f5+ {[%clk 0:00:09.5]} 55. Kf4
{[%clk 0:00:12.7]} 55... Nc7 {[%clk 0:00:08.3]} 56. Nc4 {[%clk 0:00:09.7]} 56...
Kf6 {[%clk 0:00:08]} 57. Nd6 {[%clk 0:00:07.7]} 57... g5+ {[%clk 0:00:08.9]} 58.
Kf3 {[%clk 0:00:07.6]} 58... Ke5 {[%clk 0:00:08.1]} 59. Nf7+ {[%clk 0:00:07.8]}
59... Kf6 {[%clk 0:00:08.3]} 60. Nd6 {[%clk 0:00:08.2]} 60... Ke6 {[%clk
0:00:08.9]} 61. Nc4 {[%clk 0:00:06.1]} 61... Kd5 {[%clk 0:00:06.4]} 62. Nb6+
{[%clk 0:00:06.3]} 62... Ke5 {[%clk 0:00:04.9]} 63. Nc4+ {[%clk 0:00:05.6]}
63... Kd4 {[%clk 0:00:05.1]} 64. Nd6 {[%clk 0:00:05.5]} 64... c4 {[%clk
0:00:05.3]} 65. Nxf5+ {[%clk 0:00:05.6]} 65... Kd3 {[%clk 0:00:05.8]} 66. Ne3
{[%clk 0:00:05.4]} 66... c3 {[%clk 0:00:05.3]} 67. Kf2 {[%clk 0:00:03]} 67...
Na6 {[%clk 0:00:04.2]} 68. Kf3 {[%clk 0:00:02.5]} 68... Nb4 {[%clk 0:00:04.7]}
69. Kf2 {[%clk 0:00:02.3]} 69... Kd2 {[%clk 0:00:04.3]} 70. Kf3 {[%clk 0:00:01]}
70... g4+ {[%clk 0:00:04.9]} 71. Nxg4 {[%clk 0:00:01]} 71... c2 {[%clk
0:00:04.8]} 72. Ne3 {[%clk 0:00:01.2]} 72... c1=Q {[%clk 0:00:05]} 73. Nf1+
{[%clk 0:00:02.1]} 73... Qxf1+ {[%clk 0:00:05]} 74. Ke4 {[%clk 0:00:01.8]} 74...
Qb5 {[%clk 0:00:05.9]} 0-1